[Event "Late-Titled-Tuesday-Blitz-May-28-2024"]
[Site "Chess.com"]
[Date "2024.05.28"]
[Round "4"]
[White "WildBizon"]
[Black "jaskol95"]
[Result "1/2-1/2"]
[WhiteElo "2734"]
[BlackElo "2542"]
[TimeControl "180+1"]
[EndTime "14:37:20 PDT"]
[Termination "Game drawn by repetition"]

1. e4 {[%clk 0:02:56.3]} 1... e6 {[%clk 0:03:00.2]} 2. d4 {[%clk 0:02:55.6]}
2... d5 {[%clk 0:03:00.7]} 3. Bd3 {[%clk 0:02:56]} 3... Nf6 {[%clk 0:02:59.7]}
4. e5 {[%clk 0:02:55]} 4... Nfd7 {[%clk 0:03:00.4]} 5. f4 {[%clk 0:02:55.4]}
5... c5 {[%clk 0:03:00.5]} 6. c3 {[%clk 0:02:56]} 6... Nc6 {[%clk 0:02:58.5]} 7.
Nf3 {[%clk 0:02:50.2]} 7... a5 {[%clk 0:02:50.3]} 8. Na3 {[%clk 0:02:45]} 8...
cxd4 {[%clk 0:02:27.9]} 9. cxd4 {[%clk 0:02:41]} 9... Bb4+ {[%clk 0:02:25.1]}
10. Kf2 {[%clk 0:02:37.6]} 10... Qb6 {[%clk 0:02:17.8]} 11. Nb5 {[%clk
0:02:32.8]} 11... O-O {[%clk 0:02:17.6]} 12. Bxh7+ {[%clk 0:02:28.5]} 12... Kxh7
{[%clk 0:02:17.7]} 13. Ng5+ {[%clk 0:02:28.9]} 13... Kg6 {[%clk 0:01:46.9]} 14.
Qg4 {[%clk 0:02:28.5]} 14... f5 {[%clk 0:01:47.5]} 15. Qh4 {[%clk 0:02:28.8]}
15... Nf6 {[%clk 0:01:35.6]} 16. exf6 {[%clk 0:02:25.4]} 16... Qxb5 {[%clk
0:01:11.1]} 17. fxg7 {[%clk 0:01:47]} 17... Kxg7 {[%clk 0:01:10]} 18. Qh7+
{[%clk 0:01:47]} 18... Kf6 {[%clk 0:01:09.7]} 19. Be3 {[%clk 0:01:47]} 19... b6
{[%clk 0:00:46.3]} 20. Rac1 {[%clk 0:01:31.1]} 20... Ba6 {[%clk 0:00:36]} 21.
Qh6+ {[%clk 0:01:29.9]} 21... Ke7 {[%clk 0:00:36.7]} 22. Qxe6+ {[%clk
0:01:29.1]} 22... Kd8 {[%clk 0:00:36.9]} 23. Rxc6 {[%clk 0:01:09.1]} 23... Qe2+
{[%clk 0:00:35.6]} 24. Kg3 {[%clk 0:01:09.2]} 24... Qg4+ {[%clk 0:00:28.8]} 25.
Kf2 {[%clk 0:01:09.4]} 25... Qe2+ {[%clk 0:00:29.7]} 26. Kg3 {[%clk 0:01:08.5]}
26... Qg4+ {[%clk 0:00:03.6]} 27. Kf2 {[%clk 0:01:08.7]} 27... Qe2+ {[%clk
0:00:04.5]} 1/2-1/2

[Event "Late-Titled-Tuesday-Blitz-May-28-2024"]
[Site "Chess.com"]
[Date "2024.05.28"]
[Round "4"]
[White "AlexeiShirov"]
[Black "SRob2003"]
[Result "1-0"]
[WhiteElo "2907"]
[BlackElo "2681"]
[TimeControl "180+1"]
[EndTime "14:37:22 PDT"]
[Termination "AlexeiShirov won by resignation"]

1. e4 {[%clk 0:03:00.9]} 1... c6 {[%clk 0:03:00.1]} 2. d4 {[%clk 0:03:00.4]}
2... d5 {[%clk 0:03:01]} 3. e5 {[%clk 0:03:00.6]} 3... c5 {[%clk 0:03:01.7]} 4.
dxc5 {[%clk 0:02:59.8]} 4... e6 {[%clk 0:03:01.7]} 5. a3 {[%clk 0:02:56.8]} 5...
Bxc5 {[%clk 0:03:02.3]} 6. b4 {[%clk 0:02:56.4]} 6... Be7 {[%clk 0:03:02.9]} 7.
Nf3 {[%clk 0:02:54.3]} 7... a5 {[%clk 0:02:50.5]} 8. b5 {[%clk 0:02:49.6]} 8...
f6 {[%clk 0:02:50]} 9. c4 {[%clk 0:02:30.9]} 9... dxc4 {[%clk 0:02:39.9]} 10.
Qxd8+ {[%clk 0:02:28.2]} 10... Bxd8 {[%clk 0:02:39.9]} 11. Bxc4 {[%clk
0:02:27.7]} 11... Kf7 {[%clk 0:02:25.5]} 12. Nc3 {[%clk 0:02:19.5]} 12... Nd7
{[%clk 0:02:21.5]} 13. Ne4 {[%clk 0:02:19.1]} 13... Be7 {[%clk 0:02:19.4]} 14.
Bb2 {[%clk 0:02:09]} 14... h6 {[%clk 0:02:08.4]} 15. O-O-O {[%clk 0:01:57.8]}
15... Nb6 {[%clk 0:01:53.8]} 16. exf6 {[%clk 0:01:55.2]} 16... Nxf6 {[%clk
0:01:09.6]} 17. Ne5+ {[%clk 0:01:53.2]} 17... Ke8 {[%clk 0:01:02.6]} 18. Bd3
{[%clk 0:01:51.1]} 18... Bd7 {[%clk 0:00:50.1]} 19. Nxd7 {[%clk 0:01:47]} 19...
Nbxd7 {[%clk 0:00:45.1]} 20. Rhe1 {[%clk 0:01:42.8]} 20... Nxe4 {[%clk
0:00:36.1]} 21. Bxe4 {[%clk 0:01:40.6]} 21... Nc5 {[%clk 0:00:24.9]} 22. Bxg7
{[%clk 0:01:38.4]} 22... Bg5+ {[%clk 0:00:16.7]} 23. Kb1 {[%clk 0:01:36.2]}
23... Rg8 {[%clk 0:00:17.4]} 24. Be5 {[%clk 0:01:25.9]} 24... Be7 {[%clk
0:00:11.9]} 25. Bf3 {[%clk 0:01:19.1]} 25... Rg5 {[%clk 0:00:02.7]} 26. h4
{[%clk 0:01:17.5]} 26... Rf5 {[%clk 0:00:02.3]} 27. Bg4 {[%clk 0:01:08.3]} 27...
Rf3 {[%clk 0:00:02.4]} 28. Bxf3 {[%clk 0:01:07.8]} 1-0

[Event "Late-Titled-Tuesday-Blitz-May-28-2024"]
[Site "Chess.com"]
[Date "2024.05.28"]
[Round "4"]
[White "carokannlover213"]
[Black "Love7Unicorn"]
[Result "1-0"]
[WhiteElo "2740"]
[BlackElo "2532"]
[TimeControl "180+1"]
[EndTime "14:37:26 PDT"]
[Termination "carokannlover213 won on time"]

1. e4 {[%clk 0:03:00.9]} 1... c5 {[%clk 0:02:49.7]} 2. Nf3 {[%clk 0:03:00.4]}
2... d6 {[%clk 0:02:49.1]} 3. d4 {[%clk 0:03:00.9]} 3... cxd4 {[%clk 0:02:49.7]}
4. Nxd4 {[%clk 0:03:01.8]} 4... Nf6 {[%clk 0:02:49.6]} 5. Nc3 {[%clk 0:03:02.4]}
5... g6 {[%clk 0:02:49.6]} 6. Be2 {[%clk 0:02:54.9]} 6... Bg7 {[%clk 0:02:49.7]}
7. g4 {[%clk 0:02:55.4]} 7... Nc6 {[%clk 0:02:40]} 8. Be3 {[%clk 0:02:47.1]}
8... h5 {[%clk 0:02:39.2]} 9. gxh5 {[%clk 0:02:43.5]} 9... Nxh5 {[%clk
0:02:39.2]} 10. Qd2 {[%clk 0:02:40.5]} 10... Bd7 {[%clk 0:01:40]} 11. O-O-O
{[%clk 0:02:31.8]} 11... Rc8 {[%clk 0:01:34.5]} 12. f4 {[%clk 0:02:29.7]} 12...
Qa5 {[%clk 0:00:43.1]} 13. Kb1 {[%clk 0:02:23.3]} 13... Nxf4 {[%clk 0:00:32]}
14. Nb3 {[%clk 0:02:15.5]} 14... Nxe2 {[%clk 0:00:16.8]} 15. Nxa5 {[%clk
0:02:13.1]} 15... Nxc3+ {[%clk 0:00:17.2]} 16. bxc3 {[%clk 0:02:12.8]} 16...
Nxa5 {[%clk 0:00:17.9]} 17. Bd4 {[%clk 0:02:09.1]} 17... Nc4 {[%clk 0:00:11.5]}
18. Qf2 {[%clk 0:02:07.4]} 18... e5 {[%clk 0:00:08]} 19. Be3 {[%clk 0:02:05.3]}
19... b6 {[%clk 0:00:06]} 20. h4 {[%clk 0:02:05.2]} 20... Rh5 {[%clk 0:00:05.1]}
21. Bg5 {[%clk 0:02:02.5]} 21... Be6 {[%clk 0:00:04.8]} 22. Rhf1 {[%clk
0:02:00.4]} 22... Kd7 {[%clk 0:00:03.8]} 23. Rd5 {[%clk 0:01:59.5]} 23... Bf8
{[%clk 0:00:03]} 24. a4 {[%clk 0:01:58]} 24... Be7 {[%clk 0:00:01.6]} 25. Bxe7
{[%clk 0:01:52.2]} 25... Kxe7 {[%clk 0:00:02.5]} 26. a5 {[%clk 0:01:52.7]} 26...
bxa5 {[%clk 0:00:02.6]} 27. Qxa7+ {[%clk 0:01:51.1]} 27... Kf8 {[%clk
0:00:03.3]} 28. Kc1 {[%clk 0:01:40.7]} 28... Rxh4 {[%clk 0:00:03.1]} 29. Rb5
{[%clk 0:01:40]} 29... Kg7 {[%clk 0:00:02.9]} 30. Rb7 {[%clk 0:01:40.4]} 30...
Rf8 {[%clk 0:00:03.2]} 31. Re7 {[%clk 0:01:40.6]} 31... Kg8 {[%clk 0:00:02.8]}
32. Rxe6 {[%clk 0:01:30.5]} 32... fxe6 {[%clk 0:00:03.7]} 33. Rxf8+ {[%clk
0:01:30.6]} 33... Kxf8 {[%clk 0:00:04.6]} 34. Qb8+ {[%clk 0:01:30.5]} 34... Kg7
{[%clk 0:00:05]} 35. Qc7+ {[%clk 0:01:31.4]} 35... Kh6 {[%clk 0:00:05.5]} 36.
Qxc4 {[%clk 0:01:31.9]} 36... d5 {[%clk 0:00:05.9]} 37. Qc8 {[%clk 0:01:30.2]}
37... Rxe4 {[%clk 0:00:03]} 38. Qxe6 {[%clk 0:01:30.2]} 1-0

[Event "Late-Titled-Tuesday-Blitz-May-28-2024"]
[Site "Chess.com"]
[Date "2024.05.28"]
[Round "4"]
[White "Arteler"]
[Black "DonJuanEGenaro"]
[Result "0-1"]
[WhiteElo "2245"]
[BlackElo "2035"]
[TimeControl "180+1"]
[EndTime "14:37:26 PDT"]
[Termination "DonJuanEGenaro won by checkmate"]

1. d4 {[%clk 0:02:54.8]} 1... d5 {[%clk 0:02:58.3]} 2. c4 {[%clk 0:02:49.2]}
2... e6 {[%clk 0:02:57.9]} 3. Nc3 {[%clk 0:02:47.3]} 3... c5 {[%clk 0:02:57]} 4.
e3 {[%clk 0:02:44.9]} 4... Nf6 {[%clk 0:02:55.3]} 5. dxc5 {[%clk 0:02:44.3]}
5... Bxc5 {[%clk 0:02:53.5]} 6. cxd5 {[%clk 0:02:44.4]} 6... exd5 {[%clk
0:02:52.8]} 7. Nf3 {[%clk 0:02:39.9]} 7... Nc6 {[%clk 0:02:52.4]} 8. Be2 {[%clk
0:02:37.8]} 8... O-O {[%clk 0:02:50.9]} 9. O-O {[%clk 0:02:37.1]} 9... a6 {[%clk
0:02:48.4]} 10. a3 {[%clk 0:02:36.8]} 10... h6 {[%clk 0:02:44.1]} 11. b4 {[%clk
0:02:35.8]} 11... Ba7 {[%clk 0:02:42.7]} 12. Bb2 {[%clk 0:02:35.2]} 12... Bf5
{[%clk 0:02:40.4]} 13. Bd3 {[%clk 0:02:33.2]} 13... Bg4 {[%clk 0:02:34.9]} 14.
h3 {[%clk 0:02:30.1]} 14... Bxf3 {[%clk 0:02:29.6]} 15. Qxf3 {[%clk 0:02:27.8]}
15... d4 {[%clk 0:02:25.5]} 16. Ne4 {[%clk 0:01:23.9]} 16... Ne5 {[%clk
0:02:23.8]} 17. Nxf6+ {[%clk 0:01:18.7]} 17... Qxf6 {[%clk 0:02:22.8]} 18. Qxf6
{[%clk 0:01:12.4]} 18... gxf6 {[%clk 0:02:22.2]} 19. Be4 {[%clk 0:01:06.3]}
19... dxe3 {[%clk 0:02:22]} 20. Bxe5 {[%clk 0:00:55.7]} 20... exf2+ {[%clk
0:02:20.9]} 21. Kh1 {[%clk 0:00:52.9]} 21... fxe5 {[%clk 0:02:20.7]} 22. Rac1
{[%clk 0:00:43.5]} 22... Rab8 {[%clk 0:02:06.6]} 23. Rc7 {[%clk 0:00:38.7]}
23... f5 {[%clk 0:01:58.8]} 24. Bd5+ {[%clk 0:00:36.3]} 24... Kh8 {[%clk
0:01:57.5]} 25. Rxb7 {[%clk 0:00:34.9]} 25... Rxb7 {[%clk 0:01:53.5]} 26. Bxb7
{[%clk 0:00:35.8]} 26... Be3 {[%clk 0:01:45]} 27. Bxa6 {[%clk 0:00:33.6]} 27...
Ra8 {[%clk 0:01:43.3]} 28. b5 {[%clk 0:00:33.4]} 28... e4 {[%clk 0:01:42]} 29.
a4 {[%clk 0:00:33]} 29... Bb6 {[%clk 0:01:41.6]} 30. Ra1 {[%clk 0:00:20.6]}
30... e3 {[%clk 0:01:39.6]} 31. a5 {[%clk 0:00:17.9]} 31... e2 {[%clk 0:01:39]}
32. axb6 {[%clk 0:00:13.5]} 32... f1=Q+ {[%clk 0:01:38.4]} 33. Rxf1 {[%clk
0:00:13.3]} 33... exf1=Q+ {[%clk 0:01:37.4]} 34. Kh2 {[%clk 0:00:14.2]} 34...
Qf4+ {[%clk 0:01:36.6]} 35. Kh1 {[%clk 0:00:13.9]} 35... Rd8 {[%clk 0:01:36]}
36. g3 {[%clk 0:00:08]} 36... Qf2 {[%clk 0:01:33.9]} 37. b7 {[%clk 0:00:02.6]}
37... Rd1# {[%clk 0:01:32]} 0-1

[Event "Late-Titled-Tuesday-Blitz-May-28-2024"]
[Site "Chess.com"]
[Date "2024.05.28"]
[Round "4"]
[White "BogdanDeac"]
[Black "Dexter_Dyke"]
[Result "1-0"]
[WhiteElo "3072"]
[BlackElo "2446"]
[TimeControl "180+1"]
[EndTime "14:37:30 PDT"]
[Termination "BogdanDeac won by resignation"]

1. d4 {[%clk 0:03:00.9]} 1... Nf6 {[%clk 0:02:59.7]} 2. Nf3 {[%clk 0:03:00.9]}
2... c5 {[%clk 0:03:00]} 3. e3 {[%clk 0:02:59.9]} 3... d5 {[%clk 0:03:00.2]} 4.
Nbd2 {[%clk 0:02:58.1]} 4... Nc6 {[%clk 0:03:00.4]} 5. h3 {[%clk 0:02:54.5]}
5... Bf5 {[%clk 0:02:59]} 6. c3 {[%clk 0:02:40]} 6... e6 {[%clk 0:02:56.5]} 7.
g4 {[%clk 0:02:40.3]} 7... Bg6 {[%clk 0:02:55.4]} 8. Nh4 {[%clk 0:02:40.7]} 8...
Bd6 {[%clk 0:02:54.4]} 9. Nxg6 {[%clk 0:02:40.3]} 9... hxg6 {[%clk 0:02:54.1]}
10. Bg2 {[%clk 0:02:40.9]} 10... cxd4 {[%clk 0:02:50.8]} 11. exd4 {[%clk
0:02:40.3]} 11... O-O {[%clk 0:02:43.1]} 12. O-O {[%clk 0:02:35.9]} 12... e5
{[%clk 0:02:43]} 13. dxe5 {[%clk 0:02:34.7]} 13... Nxe5 {[%clk 0:02:43]} 14. Nb3
{[%clk 0:02:34.9]} 14... Nc6 {[%clk 0:02:34.6]} 15. Bg5 {[%clk 0:02:33.4]} 15...
Be7 {[%clk 0:02:33.1]} 16. Bxf6 {[%clk 0:02:32.6]} 16... Bxf6 {[%clk 0:02:31.1]}
17. Qxd5 {[%clk 0:02:33.2]} 17... Qc7 {[%clk 0:02:24.4]} 18. Rfd1 {[%clk
0:02:29.5]} 18... Rad8 {[%clk 0:02:18.4]} 19. Qc4 {[%clk 0:02:29.6]} 19... Qb6
{[%clk 0:01:58]} 20. Qc5 {[%clk 0:02:26.8]} 20... Qc7 {[%clk 0:01:56.7]} 21.
Bxc6 {[%clk 0:02:20.3]} 21... bxc6 {[%clk 0:01:55.3]} 22. Nd4 {[%clk 0:02:20.8]}
22... Qf4 {[%clk 0:01:52.7]} 23. Ne2 {[%clk 0:02:15.1]} 23... Qf3 {[%clk
0:01:30]} 24. Qe3 {[%clk 0:02:14.4]} 24... Qxe3 {[%clk 0:01:30.1]} 25. fxe3
{[%clk 0:02:15.3]} 25... Rfe8 {[%clk 0:01:28.6]} 26. Kf2 {[%clk 0:02:14]} 26...
a5 {[%clk 0:01:28]} 27. Nd4 {[%clk 0:02:08.6]} 27... c5 {[%clk 0:01:27.6]} 28.
Nf3 {[%clk 0:02:08.6]} 28... Rb8 {[%clk 0:01:26.9]} 29. Rd2 {[%clk 0:02:08.2]}
29... g5 {[%clk 0:01:23.3]} 30. Re1 {[%clk 0:02:07.5]} 30... Re4 {[%clk
0:01:20.9]} 31. Rde2 {[%clk 0:02:05]} 31... a4 {[%clk 0:01:20.8]} 32. a3 {[%clk
0:02:02.2]} 32... g6 {[%clk 0:01:18.5]} 33. Rd1 {[%clk 0:02:00.5]} 33... Kg7
{[%clk 0:01:15.4]} 34. Rd5 {[%clk 0:02:00.2]} 34... Rb5 {[%clk 0:01:03.3]} 35.
Kg2 {[%clk 0:01:45.3]} 35... Kf8 {[%clk 0:01:02.8]} 36. Nxg5 {[%clk 0:01:42.8]}
36... Re7 {[%clk 0:00:40.7]} 37. Nf3 {[%clk 0:01:38.1]} 37... Reb7 {[%clk
0:00:39.5]} 38. Rdd2 {[%clk 0:01:37.6]} 38... Rb3 {[%clk 0:00:36.5]} 39. e4
{[%clk 0:01:37.3]} 39... Bxc3 {[%clk 0:00:33.8]} 40. bxc3 {[%clk 0:01:36.5]}
40... Rxa3 {[%clk 0:00:34.7]} 41. Ra2 {[%clk 0:01:35.7]} 41... Rbb3 {[%clk
0:00:33.6]} 42. Rxa3 {[%clk 0:01:35.2]} 42... Rxa3 {[%clk 0:00:33.7]} 43. Rc2
{[%clk 0:01:34.6]} 43... Rb3 {[%clk 0:00:32.4]} 44. Kf2 {[%clk 0:01:33]} 44...
a3 {[%clk 0:00:31.9]} 45. Ke3 {[%clk 0:01:33.6]} 45... Rb1 {[%clk 0:00:25]} 46.
Ra2 {[%clk 0:01:33.3]} 46... Rh1 {[%clk 0:00:23.8]} 47. h4 {[%clk 0:01:32.1]}
1-0

[Event "Late-Titled-Tuesday-Blitz-May-28-2024"]
[Site "Chess.com"]
[Date "2024.05.28"]
[Round "4"]
[White "mindprogress732"]
[Black "jinxy2009"]
[Result "0-1"]
[WhiteElo "2124"]
[BlackElo "2298"]
[TimeControl "180+1"]
[EndTime "14:37:32 PDT"]
[Termination "jinxy2009 won by resignation"]

1. Nf3 {[%clk 0:02:56.5]} 1... Nf6 {[%clk 0:02:58.4]} 2. b3 {[%clk 0:02:56.2]}
2... d5 {[%clk 0:02:58.8]} 3. Bb2 {[%clk 0:02:56.2]} 3... Bf5 {[%clk 0:02:58.9]}
4. d3 {[%clk 0:02:55.9]} 4... h6 {[%clk 0:02:58.4]} 5. Nbd2 {[%clk 0:02:56.1]}
5... e6 {[%clk 0:02:58.6]} 6. g3 {[%clk 0:02:55.7]} 6... Be7 {[%clk 0:02:57.4]}
7. Bg2 {[%clk 0:02:56.3]} 7... O-O {[%clk 0:02:57.7]} 8. O-O {[%clk 0:02:57]}
8... Bh7 {[%clk 0:02:57.9]} 9. Ne5 {[%clk 0:02:55.7]} 9... Nbd7 {[%clk
0:02:57.6]} 10. e4 {[%clk 0:02:54.6]} 10... c6 {[%clk 0:02:56.1]} 11. f4 {[%clk
0:02:53.1]} 11... a5 {[%clk 0:02:49.6]} 12. Qe2 {[%clk 0:02:49]} 12... a4 {[%clk
0:02:49.4]} 13. Rae1 {[%clk 0:02:48]} 13... axb3 {[%clk 0:02:48.6]} 14. axb3
{[%clk 0:02:48.9]} 14... Ra2 {[%clk 0:02:48.6]} 15. Rb1 {[%clk 0:02:42.5]} 15...
dxe4 {[%clk 0:02:37.9]} 16. Nxe4 {[%clk 0:02:24.9]} 16... Nxe4 {[%clk
0:02:28.9]} 17. dxe4 {[%clk 0:02:25.8]} 17... Nxe5 {[%clk 0:02:26]} 18. Bxe5
{[%clk 0:02:26.7]} 18... Qb6+ {[%clk 0:02:21.4]} 19. Kh1 {[%clk 0:02:24.9]}
19... Qc5 {[%clk 0:02:21.4]} 20. Rf2 {[%clk 0:02:13.6]} 20... f6 {[%clk
0:02:17.6]} 21. Bb2 {[%clk 0:02:06.9]} 21... Rd8 {[%clk 0:02:15.7]} 22. Bh3
{[%clk 0:02:01.3]} 22... Kf7 {[%clk 0:02:12.5]} 23. f5 {[%clk 0:01:49.9]} 23...
e5 {[%clk 0:02:01.1]} 24. Bf1 {[%clk 0:01:49.6]} 24... Kf8 {[%clk 0:01:59.3]}
25. g4 {[%clk 0:01:43.9]} 25... Bg8 {[%clk 0:01:56.7]} 26. h4 {[%clk 0:01:43.4]}
26... Qa5 {[%clk 0:01:23.8]} 27. Bc1 {[%clk 0:01:39.6]} 27... Ba3 {[%clk
0:01:22]} 28. Be3 {[%clk 0:01:30.9]} 28... Bc5 {[%clk 0:01:22]} 29. g5 {[%clk
0:01:29.8]} 29... hxg5 {[%clk 0:01:12.4]} 30. hxg5 {[%clk 0:01:30.7]} 30... Qc3
{[%clk 0:01:06.5]} 31. Bxc5+ {[%clk 0:01:20.5]} 31... Qxc5 {[%clk 0:01:05.6]}
32. gxf6 {[%clk 0:01:18.7]} 32... gxf6 {[%clk 0:01:05.9]} 33. Rg2 {[%clk
0:01:18.9]} 33... Rd7 {[%clk 0:01:01]} 34. Qg4 {[%clk 0:01:12.6]} 34... Rh7+
{[%clk 0:01:00.5]} 35. Rh2 {[%clk 0:01:11.2]} 35... Rxh2+ {[%clk 0:00:59.6]} 36.
Kxh2 {[%clk 0:01:12.1]} 36... Qxc2+ {[%clk 0:00:59.7]} 37. Bg2 {[%clk
0:01:09.3]} 37... Qxb1 {[%clk 0:01:00]} 38. Qg6 {[%clk 0:01:04.4]} 38... Qxe4
{[%clk 0:00:53]} 39. Qxf6+ {[%clk 0:01:03.1]} 39... Ke8 {[%clk 0:00:52.1]} 40.
Qg6+ {[%clk 0:00:43.1]} 40... Bf7 {[%clk 0:00:51.7]} 0-1

[Event "Late-Titled-Tuesday-Blitz-May-28-2024"]
[Site "Chess.com"]
[Date "2024.05.28"]
[Round "4"]
[White "Juliana_Figueira"]
[Black "MaiqMaster"]
[Result "0-1"]
[WhiteElo "1998"]
[BlackElo "2454"]
[TimeControl "180+1"]
[EndTime "14:37:36 PDT"]
[Termination "MaiqMaster won by checkmate"]

1. d4 {[%clk 0:02:56.9]} 1... d5 {[%clk 0:02:59.3]} 2. c4 {[%clk 0:02:56.5]}
2... e6 {[%clk 0:02:59.5]} 3. Nc3 {[%clk 0:02:56]} 3... Nf6 {[%clk 0:02:59.7]}
4. cxd5 {[%clk 0:02:56.2]} 4... exd5 {[%clk 0:03:00.6]} 5. Bg5 {[%clk 0:02:56]}
5... Bb4 {[%clk 0:02:59.6]} 6. a3 {[%clk 0:02:48.7]} 6... Bxc3+ {[%clk
0:02:56.5]} 7. bxc3 {[%clk 0:02:49.3]} 7... h6 {[%clk 0:02:57]} 8. Bh4 {[%clk
0:02:48.2]} 8... g5 {[%clk 0:02:54.1]} 9. Bg3 {[%clk 0:02:47.4]} 9... Ne4 {[%clk
0:02:54.7]} 10. Qb3 {[%clk 0:02:45.3]} 10... h5 {[%clk 0:02:51.5]} 11. f3 {[%clk
0:02:29.3]} 11... Nxg3 {[%clk 0:02:45.8]} 12. hxg3 {[%clk 0:02:30.2]} 12... Nc6
{[%clk 0:02:30.7]} 13. e3 {[%clk 0:02:29.5]} 13... Qd6 {[%clk 0:02:30.5]} 14.
Ne2 {[%clk 0:02:17.6]} 14... Bf5 {[%clk 0:02:16.9]} 15. Ra2 {[%clk 0:02:03.3]}
15... O-O-O {[%clk 0:02:15.1]} 16. Rb2 {[%clk 0:02:00.6]} 16... b6 {[%clk
0:02:13.4]} 17. Qa4 {[%clk 0:01:57.8]} 17... Kb8 {[%clk 0:02:09.9]} 18. f4
{[%clk 0:01:23.9]} 18... Rde8 {[%clk 0:02:05.6]} 19. c4 {[%clk 0:00:51.4]} 19...
Rxe3 {[%clk 0:02:00.3]} 20. c5 {[%clk 0:00:42.6]} 20... Qf6 {[%clk 0:01:52.9]}
21. cxb6 {[%clk 0:00:41.1]} 21... axb6 {[%clk 0:01:35.3]} 22. Kf2 {[%clk
0:00:21.7]} 22... Rhe8 {[%clk 0:01:32.4]} 23. Qd1 {[%clk 0:00:15.3]} 23... Bg4
{[%clk 0:01:30.1]} 24. a4 {[%clk 0:00:07.6]} 24... Nxd4 {[%clk 0:01:29.9]} 25.
Rd2 {[%clk 0:00:03.5]} 25... Nxe2 {[%clk 0:01:25.8]} 26. Bxe2 {[%clk 0:00:03.3]}
26... Bxe2 {[%clk 0:01:26.7]} 27. Rxe2 {[%clk 0:00:03.2]} 27... Rxe2+ {[%clk
0:01:27.6]} 28. Qxe2 {[%clk 0:00:03.2]} 28... Rxe2+ {[%clk 0:01:28.3]} 29. Kxe2
{[%clk 0:00:03.2]} 29... gxf4 {[%clk 0:01:28.4]} 30. gxf4 {[%clk 0:00:02.9]}
30... Qxf4 {[%clk 0:01:28.4]} 31. Rf1 {[%clk 0:00:02.1]} 31... Qe4+ {[%clk
0:01:28.4]} 32. Kf2 {[%clk 0:00:02]} 32... d4 {[%clk 0:01:28.8]} 33. Kg1 {[%clk
0:00:02.9]} 33... Qe3+ {[%clk 0:01:28.8]} 34. Kh1 {[%clk 0:00:02.1]} 34... d3
{[%clk 0:01:29.5]} 35. Rxf7 {[%clk 0:00:01.5]} 35... d2 {[%clk 0:01:29.8]} 36.
Rf8+ {[%clk 0:00:01.1]} 36... Kb7 {[%clk 0:01:29.6]} 37. Rd8 {[%clk 0:00:01.4]}
37... Qe1+ {[%clk 0:01:28.8]} 38. Kh2 {[%clk 0:00:01.6]} 38... d1=Q {[%clk
0:01:29.7]} 39. Rxd1 {[%clk 0:00:01]} 39... Qxd1 {[%clk 0:01:30.6]} 40. Kh3
{[%clk 0:00:01]} 40... Qg4+ {[%clk 0:01:30.5]} 41. Kh2 {[%clk 0:00:01.1]} 41...
h4 {[%clk 0:01:31.4]} 42. Kg1 {[%clk 0:00:01.2]} 42... h3 {[%clk 0:01:31.1]} 43.
Kh1 {[%clk 0:00:02.1]} 43... Qxg2# {[%clk 0:01:32]} 0-1

[Event "Late-Titled-Tuesday-Blitz-May-28-2024"]
[Site "Chess.com"]
[Date "2024.05.28"]
[Round "4"]
[White "RuperezA"]
[Black "ImportedItalianMaple"]
[Result "1-0"]
[WhiteElo "2703"]
[BlackElo "2528"]
[TimeControl "180+1"]
[EndTime "14:37:40 PDT"]
[Termination "RuperezA won on time"]

1. e4 {[%clk 0:02:57.1]} 1... c5 {[%clk 0:03:00.3]} 2. Nf3 {[%clk 0:02:56.2]}
2... a6 {[%clk 0:03:00.8]} 3. c4 {[%clk 0:02:53.1]} 3... Nc6 {[%clk 0:02:58.6]}
4. d4 {[%clk 0:02:52.7]} 4... cxd4 {[%clk 0:02:59]} 5. Nxd4 {[%clk 0:02:53.6]}
5... e5 {[%clk 0:02:59.4]} 6. Nf5 {[%clk 0:02:50.7]} 6... d5 {[%clk 0:02:59.5]}
7. cxd5 {[%clk 0:02:46.2]} 7... Bxf5 {[%clk 0:03:00]} 8. exf5 {[%clk 0:02:45]}
8... Nd4 {[%clk 0:03:00.7]} 9. Nc3 {[%clk 0:02:43.4]} 9... Nf6 {[%clk
0:03:00.8]} 10. Bd3 {[%clk 0:02:37.9]} 10... Be7 {[%clk 0:02:59.7]} 11. Be3
{[%clk 0:02:22.8]} 11... O-O {[%clk 0:02:58]} 12. O-O {[%clk 0:02:14.1]} 12...
Nxd5 {[%clk 0:02:52.4]} 13. Be4 {[%clk 0:02:03]} 13... Nxe3 {[%clk 0:02:37.6]}
14. fxe3 {[%clk 0:02:03.9]} 14... Nc6 {[%clk 0:02:38]} 15. Nd5 {[%clk
0:01:55.5]} 15... Bc5 {[%clk 0:01:03.3]} 16. f6 {[%clk 0:01:53.1]} 16... g6
{[%clk 0:01:02.1]} 17. Rc1 {[%clk 0:01:52.5]} 17... Qd6 {[%clk 0:00:53.3]} 18.
Qe1 {[%clk 0:01:45.6]} 18... Rfd8 {[%clk 0:00:44.8]} 19. Qh4 {[%clk 0:01:43.4]}
19... Qf8 {[%clk 0:00:38.1]} 20. Kh1 {[%clk 0:00:58.8]} 20... Rxd5 {[%clk
0:00:15.5]} 21. Bxd5 {[%clk 0:00:58.7]} 21... Bxe3 {[%clk 0:00:16.2]} 22. Rc3
{[%clk 0:00:52]} 22... Bd4 {[%clk 0:00:15.5]} 23. Rh3 {[%clk 0:00:51.4]} 23...
h5 {[%clk 0:00:13.6]} 24. Qg5 {[%clk 0:00:49]} 24... Nb4 {[%clk 0:00:11.6]} 25.
Qxg6+ {[%clk 0:00:48.3]} 1-0